Cogmind - Beta 10.2 @@@ ROGUE MODE // 2022.02.17 @ 03:53:58 Player: Conner Result: Self-destructed Performance ------------- Evolutions (1) 500 Regions Visited (2) 400 Robots Destroyed (22) 110 Value Destroyed (532) 532 Prototype IDs (0) 0 Alien Tech Used (0) 0 Bonus (0) 0 TOTAL SCORE: 1542 Bonus ------- None Cogmind --------- Core Integrity 229/400 Matter 224/300 Energy 94/250 System Corruption 0% Temperature Cool (298) Movement Core (750) Ox14 Location -9/Materials Parts ------- > --- POWER (1) -------- Ion Engine > --- PROPULSION (2) --- (None) > --- UTILITY (4) ------ Cryofiber Web High-capacity Storage Unit > --- WEAPON (2) ------- Pulse Rifle Pulse Rifle > --- INVENTORY (12) --- Light Ion Engine Light Ion Engine High-capacity Storage Unit Spread Laser Spread Laser Grenade Launcher Grenade Launcher Grenade Launcher Grenade Launcher Mining Laser Peak State ------------ > --- POWER ------------ Ion Engine > --- PROPULSION ------- Wheel Wheel > --- UTILITY ---------- Cryofiber Web Cryofiber Web High-capacity Storage Unit Improved Sensor Array > --- WEAPON ----------- Pulse Rifle Pulse Rifle > --- INVENTORY -------- Light Ion Engine Light Ion Engine High-capacity Storage Unit Spread Laser Pulse Rifle Autogun Autogun Grenade Launcher Grenade Launcher Grenade Launcher Grenade Launcher Mining Laser [Rating: 19] Favorites ----------- Power Ion Engine Engine Ion Engine Propulsion Wheel Wheel Wheel Utility High-capacity Storage Unit Device Improved Sensor Array Storage High-capacity Storage Unit Weapon Particle Gun Energy Gun Particle Gun Ballistic Gun Assault Rifle Build | -11 -10 -9 ------- Run | Scr Mat Mat Slots Evolved 2 | . . 2 Power . | . . . Propulsion . | . . . Utility 2 | . . 2 Weapon . | . . . Parts Attached 32 | 8 17 7 Power 7 | 2 4 1 Engine 7 | 2 4 1 Core . | . . . Reactor . | . . . Propulsion 6 | 2 4 . Treads . | . . . Leg . | . . . Wheel 6 | 2 4 . Hover . | . . . Flight . | . . . Utility 6 | . 4 2 Device 4 | . 2 2 Storage 2 | . 2 . Processor . | . . . Hackware . | . . . Protection . | . . . Artifact . | . . . Weapon 13 | 4 5 4 Energy Gun 12 | 3 5 4 Energy Cannon . | . . . Ballistic Gun 1 | 1 . . Ballistic Cannon . | . . . Launcher . | . . . Special Weapon . | . . . Impact Weapon . | . . . Slashing Weapon . | . . . Piercing Weapon . | . . . Special Melee Weapon . | . . . Unidentified Prototypes . | . . . Parts Lost 5 | . . 5 Power . | . . . Propulsion 2 | . . 2 Utility 1 | . . 1 Weapon 2 | . . 2 Highest Loss Streak 5 | . . 5 Average Slot Usage (%) 92 | . 94 81 Engine 13 | . 14 11 Wheel 25 | . 28 15 Device 12 | . 9 24 Storage 13 | . 13 11 Energy Gun 26 | . 27 18 Naked Turns . | . . . Heaviest Build 46 | 9 44 46 Greatest Support 32 | 32 32 20 Greatest Overweight (x) 3 | . 2 3 Average Overweight (x) 1 | . 1 2 Largest Inventory Capacity 12 | 4 12 12 Average Capacity 11 | 4 11 12 Most Carried 12 | 2 12 12 Average Carried 10 | 1 11 11 Final Capacity 12 | 4 12 12 Final Carried 12 | 2 12 10 Class Distribution -------------------- 100% | Mutant Dominant Class ---------------- Mutant | -10/Materials Mutant | -9/Materials Resources | -11 -10 -9 ----------- Run | Scr Mat Mat Matter Collected 529 | 208 242 79 Remotely . | . . . Salvage Created 625 | . 404 221 Parts 35 | . 29 6 Haulers Intercepted 1 | . 1 . Recyclers Shooed . | . . . Parts Field Recycled . | . . . Retrieved Matter . | . . . Parts Self-Destructed . | . . . Prevented . | . . . Kills | -11 -10 -9 ------- Run | Scr Mat Mat Combat Hostiles Destroyed 17 | . 10 7 Guns 16 | . 9 7 AOE 1 | . 1 . Classes Destroyed 6 | . 5 1 Worker 1 | . 1 . Hauler 1 | . 1 . Watcher 3 | . 3 . Swarmer 6 | . 6 . Grunt 10 | . 4 6 Sentry 1 | . . 1 Best Kill Streak 4 | . 4 4 Combat Bots Only 4 | . 3 4 Max Kills in Single Turn 2 | . 2 1 Gunslinging . | . . . Exploded 1 | . 1 . Melee . | . . . Uniques/NPCs Destroyed . | . . . Combat | -11 -10 -9 -------- Run | Scr Mat Mat Damage Taken 816 | . 238 578 Core 239 | . 68 171 Absorbed by Shields . | . . . Core Remaining (%) 86 | 100 72 . Volleys Fired 57 | . 38 19 Largest 2 | . 2 2 Hottest 130 | . 130 126 Shots Fired 110 | . 74 36 Gun 110 | . 74 36 Cannon . | . . . Launcher . | . . . Special . | . . . Kinetic . | . . . Thermal 91 | . 55 36 Explosive . | . . . Electromagnetic 19 | . 19 . Robot Hit Streak 26 | . 7 26 Robot Miss Streak 2 | . 2 2 Penetration Max . | . . . Secondary Targets 2 | . . 2 Max Gunslinging Chain 1 | . . 1 Shots Hit Robots 75 | . 44 31 Core Hits 27 | . 18 9 Critical Hits . | . . . Critical Kills . | . . . Critical Parts Destroyed . | . . . Melee Attacks . | . . . Impact . | . . . Slashing . | . . . Piercing . | . . . Sneak Attacks . | . . . Combat Hostiles . | . . . Follow-up Attacks . | . . . Damage Inflicted 1229 | . 688 541 Guns 1104 | . 572 532 Cannons . | . . . Explosions 116 | . 116 . Melee . | . . . Ramming 9 | . . 9 Kinetic . | . . . Thermal 1014 | . 482 532 Explosive . | . . . Electromagnetic 206 | . 206 . Impact . | . . . Slashing . | . . . Piercing . | . . . Highest Corruption . | . . . Average Corruption . | . . . Corruption Purged . | . . . Overload Shots . | . . . Overflow Damage . | . . . Projectiles . | . . . Explosions . | . . . Melee . | . . . Knockbacks . | . . . Impact . | . . . Kinetic . | . . . Secondary . | . . . Self-Inflicted Damage 4 | . . 4 Shots . | . . . Rammed 1 | . . 1 Targets Rammed 1 | . . 1 Kicked . | . . . Crushed . | . . . Highest Temperature 558 | . 369 558 Average Temperature 181 | . 108 332 Received Heat Transfer 318 | . 57 261 Effects 18 | . 4 14 Shutdowns 1 | . . 1 Energy Bleed 5 | . 4 1 Interference 4 | . . 4 Matter Decay 2 | . . 2 Short Circuit 1 | . . 1 Damage (minor) 1 | . . 1 Damage (major) 3 | . . 3 Damage (core) 1 | . . 1 Siege Activations . | . . . Robots Corrupted . | . . . Combat Hostiles . | . . . Parts Fried 1 | . 1 . Impact Corruptions . | . . . Robots Melted . | . . . Combat Hostiles . | . . . Parts Melted 4 | . 2 2 Heat Transferred 2150 | . 1003 1147 Parts Sabotaged . | . . . Parts Stolen . | . . . Parts Stripped . | . . . Power Chain Reactions 1 | . 1 . Missiles Intercepted . | . . . Alert | -11 -10 -9 ------- Run | Scr Mat Mat Peak Influence 218 | . 218 213 Initial 13 | . . 13 Average 90 | . 97 94 Maximum Alert Level 1 | . 1 1 Low Security (%) 98 | 100 99 93 Level 1 1 | . . 6 Level 2 . | . . . Level 3 . | . . . Level 4 . | . . . Level 5 . | . . . High Security . | . . . Max Security . | . . . Squads Dispatched 2 | . . 2 Investigation 1 | . . 1 Extermination . | . . . Reinforcement 1 | . . 1 Assault . | . . . Garrison . | . . . Intercept . | . . . Construction Impeded . | . . . Haulers Reinforced . | . . . Stealth | -11 -10 -9 --------- Run | Scr Mat Mat Distress Signals 2 | . . 2 Communications Jammed . | . . . Distress Signals . | . . . Times Spotted 25 | . 14 11 Peak Tracking Total 8 | . 3 8 Tactical Retreats . | . . . Traps | -11 -10 -9 ------- Run | Scr Mat Mat Traps Triggered . | . . . Indirectly . | . . . Trap Hack Attempts . | . . . Triggered . | . . . Disarmed . | . . . Reprogrammed . | . . . Reused . | . . . Traps Extracted . | . . . Installed . | . . . Triggered . | . . . Machines | -11 -10 -9 ---------- Run | Scr Mat Mat Machines Disabled 1 | . . 1 Max in Single Turn 1 | . . 1 Machines Sabotaged . | . . . Garrisons Compromised . | . . . Overloaded Fab Kills . | . . . Fab Network Shutdowns . | . . . Hacking | -11 -10 -9 --------- Run | Scr Mat Mat Machines Accessed 13 | . 11 2 Terminals 9 | . 8 1 Fabricators . | . . . Repair Stations 1 | . 1 . Recycling Units 2 | . 2 . Scanalyzers 1 | . . 1 Garrison Access . | . . . Total Hacks 34 | . 30 4 Successful 26 | . 23 3 Failed 8 | . 7 1 Catastrophic 1 | . . 1 Database Lockouts . | . . . Manual 30 | . 27 3 Terminals 29 | . 26 3 Fabricators . | . . . Repair Stations 2 | . 2 . Recycling Units 2 | . 2 . Scanalyzers 1 | . . 1 Garrison Access . | . . . Terminal Hacks 7 | . 6 1 Terminal Index 2 | . 2 . Alert Level 3 | . 2 1 Zone Layout 2 | . 2 . Fabricator Hacks . | . . . Repair Station Hacks 2 | . 2 . Scan Component 1 | . 1 . Repair 1 | . 1 . Recycling Unit Hacks . | . . . Scanalyzer . | . . . Garrison Access Hacks . | . . . Unauthorized Hacks 17 | . 15 2 Terminals 14 | . 13 1 Track 3 | . 3 . Botnet 8 | . 7 1 Disrupt 1 | . 1 . Operators 2 | . 2 . Fabricators . | . . . Repair Stations . | . . . Recycling Units 2 | . 2 . Reject 2 | . 2 . Scanalyzers 1 | . . 1 Extract 1 | . . 1 Garrison Access . | . . . Data Cores Recovered . | . . . Used . | . . . Hacking Detections 10 | . 9 1 Full Trace Events . | . . . Feedback Events . | . . . Feedback Blocked . | . . . Robot Schematics Acquired . | . . . Robots Built . | . . . Matter . | . . . Time . | . . . Total Robot Build Rating . | . . . Part Schematics Acquired 6 | . . 6 Parts Built . | . . . Matter . | . . . Time . | . . . Total Part Build Rating . | . . . Parts Repaired 1 | . 1 . Time 26 | . 26 . Parts Recycled . | . . . Recycled Matter . | . . . Retrieved Matter . | . . . Retrieved Components . | . . . Parts Scanalyzed . | . . . Part Schematics Acquired . | . . . Parts Damaged . | . . . Bothacking | -11 -10 -9 ------------ Run | Scr Mat Mat Used RIF Installer . | . . . Robots Hacked . | . . . Non-combat . | . . . Combat . | . . . Robot Hacks Applied . | . . . Relay Couplers Released . | . . . Robots Rewired . | . . . Allies Hacked . | . . . Hacks Repelled . | . . . Allies | -11 -10 -9 -------- Run | Scr Mat Mat Total Allies . | . . . Largest Group . | . . . Highest-Rated Group . | . . . Highest-Rated Ally . | . . . Total Orders . | . . . Ally Attacks . | . . . Total Damage . | . . . Kills . | . . . Allies Corrupted . | . . . Allies Melted . | . . . Intel | -11 -10 -9 ------- Run | Scr Mat Mat Robot Analysis Total . | . . . Derelict Logs Recovered . | . . . Drone Launches . | . . . Drone Recoveries . | . . . Exploration | -11 -10 -9 ------------- Run | Scr Mat Mat Turns Passed 1238 | 76 960 202 Spaces Moved 915 | 65 746 104 Core 2 | 2 . . Treads . | . . . Legs . | . . . Wheels 913 | 63 746 104 Hover . | . . . Flight . | . . . Fastest Speed 50 | 50 100 100 Average Speed 101 | 98 101 101 Slowest Speed 110 | 100 110 110 Overloaded Moves . | . . . Propulsion Burnouts . | . . . Robots Hopped . | . . . Cave-ins Triggered . | . . . Exploration Rate (%) 36 | 4 95 10 Regions Visited 2 Branch Regions . Pre-discovered Areas . | . . . Known Exits Taken . | . . . Unknown Exits Taken 2 | 1 1 . Scrap Searched . | . . . Spaces Dug . | . . . Terrain Destroyed 3 | . 3 . Melee . | . . . Projectile . | . . . AOE 3 | . 3 . Terrain Rammed . | . . . Walls Destroyed . | . . . Machines Disabled . | . . . Actions | -11 -10 -9 --------- Run | Scr Mat Mat Total 1127 | 72 887 168 Wait 68 | . 51 17 Move 913 | 64 745 104 Hop . | . . . Pick Up 24 | . 16 8 Fast Attach 12 | 5 3 4 Attach 2 | . . 2 Detach . | . . . Swap 18 | 3 14 1 Drop 32 | . 20 12 Fire 57 | . 38 19 Melee . | . . . Ram 1 | . . 1 Kick . | . . . Crush . | . . . Escape Stasis . | . . . Rewire . | . . . Trap . | . . . Miscellaneous . | . . . Route ------- -11/Scrapyard -10/Materials (discovered 4 exits: *Mat x3 / [*Min]) -9/Materials History --------- Turn | Location | Event 2 | -11/Scrapyard | Met Revision 17 17 | -11/Scrapyard | Discovered new exit (range 15) 77 | -11/Scrapyard | Entered Materials 207 | -10/Materials | Repaired EM Pulse Gun 261 | -10/Materials | Discovered new exit (range 16) 304 | -10/Materials | Build established: Mutant 735 | -10/Materials | Discovered new exit (range 12) 762 | -10/Materials | Discovered new exit (range 3) 897 | -10/Materials | Discovered new exit (range 15) 1037 | -10/Materials | Entered another Materials area 1037 | -9/Materials | Evolved 2 slots: Utility x2 1223 | -9/Materials | Lost 5 parts (2n1u2w) 1239 | -9/Materials | Self-destructed Last Messages --------------- 01204_ G-34 Mercenary destroyed. 01205_ K-01 Serf collects debris. 01207_ Power failure averted by Cryofiber Web. 01209_ K-01 Serf collects debris. 01210_ Power failure averted by Cryofiber Web. 01212_ K-01 Serf collects debris. 01214_ Purification Channel disabled. 01216_ K-01 Serf collects debris. 01222_ W-16 Scout sends out distress signal. 01225_ Overheating: Matter decay (-56). 01226_ Power failure averted by Cryofiber Web. 01226_ Aluminum Leg melted. 01226_ G-34 Mercenary destroyed. 01228_ Overheating: System interference. 01228_ Cryofiber Web temporarily disabled. 01229_ Power failure, Ion Engine shutdown. 01230_ Overheating: Energy bleed (-5). 01231_ Overheating: Pulse Rifle damaged (-7). 01231_ Overheating: Ion Engine damaged (-9). 01231_ Overheating: Cryofiber Web damaged (-18). Map ----- +----------------------------------------------------+ | | | | | | | | | | | ?????????????????????????????????????????????????? | | ?????????????????????????????????????????????????? | | ?????????????????????????????????????????????????? | | ?????????????????????????????????????????????????? | | ?????????????????????????????????????????????????? | | ?????????????????????????????????????????????????? | | ?????????????????????????????????????????????????? | | ?????????????????????????????????????????????????? | | ?????????????????????????????????????????????????? | | ?????????????????????????????????????????????????? | | ?????????????????????????????????????????????????? | | ?????????????????????????????????????????????????? | | ?????????????????????????????????????????????????? | | ?????????????????????????????????????????????????? | | ?????????????????????????????????????????????????? | | ?????????????????????????????????????????????????? | | ?????????????????????????????????????????????????? | | ?????????????????????????????????????????????????? | | ???????????????????###############???????????????? | | ???????????????????# % #???????????????? | | ???????????????????# !% @ %= #???????????????? | | ????????????? ; """""g ##??????????????? | | ?????????? ### #w """"""""" #??????????????? | | ???????????????????# """ """ ##??????????????? | | ???????????????????# %% #???????????????? | | ???????????????????##########+####???????????????? | | ????????????????????????????# #??????????????????? | | ????????????????????????????#[#??????????????????? | | ????????????????????????????#%#??????????????????? | | ????????????????????????????# #??????????????????? | | ????????????????????????????# #??????????????????? | | ????????????????????????????# ########???????????? | | ????????????????????????????# # #???????????? | | ????????????????????????????# # #???????????? | | ????????????????????????????# + "S #???????????? | | ????????????????????????????# # """ #???????????? | | ????????????????????????????# # "" #???????????? | | ????????????????????####????# # #???????????? | | ???????????????????? ????#%########???????????? | | ??????????????????? """ ???# ######?????????????? | | ??????????????????# """ ???# ## [[#?????????????? | | ??????????????????# """ ?## ## #?????????????? | | ??????????????????# ?# !!#?????????????? | | ??????????????????? """ # #?????????????? | | ??????????????????# """ # ==#?????????????? | +----------------------------------------------------+ Best States ------------- Heat Dissipation 28 Energy Generation 10 Energy Capacity 250 Matter Stores 300 Matter Capacity 300 Sight Range 16 Robot Scan Range 13 Terrain Scan Density 10 Base Temperature (-) 100 Evasion (%) 40 Item Schematics ----------------- Imp. Signal Interpreter | -9/Materials | Extracted Plasma Cutter | -9/Materials | Extracted Lgt. Ion Engine | -9/Materials | Extracted Med. Battery | -9/Materials | Extracted Autogun | -9/Materials | Extracted Med. Matter Pod | -9/Materials | Extracted Robot Schematics ------------------ None Fabricated ------------ Nothing Alien Tech Used ----------------- None Achievements -------------- None Challenges ------------ None Game ------ Seed ImpactArmoredReconstructor Manual? 0 Play Time 00:09:17 Cumulative 47.2 hours Start 2022.02.17 @ 01:51:48 End 2022.02.17 @ 03:53:58 Sessions 3 Manual Loads 0 Difficulty Rogue Special Mode None Game No. 84 Rogue 84 Adventurer 0 Explorer 0 Win Type - Total 0 Types 0/0/0/0/0/0/0/0/0 Lore% 53 Gallery% 52 Achievement% 41 Wizard Run 0 Options --------- ASCII 0 Keyboard 1 Movement Numpad Keybinds 0 Fullscreen 1 Font 24/Smallcaps Map View 76x50 Tactical HUD 1 Map Filters NONE Filters NONE Steam 1 RUN: 19c25693-f9a4-4241-9588-d7da208c1f45